[Event "Late-Titled-Tuesday-Blitz-March-05-2024"]
[Site "Chess.com"]
[Date "2024.03.05"]
[Round "10"]
[White "BilicVladimir"]
[Black "Sinquefield"]
[Result "0-1"]
[WhiteElo "2601"]
[BlackElo "2520"]
[TimeControl "180+1"]
[EndTime "15:50:10 PST"]
[Termination "Sinquefield won by resignation"]

1. e4 {[%clk 0:02:59.9]} 1... e6 {[%clk 0:02:57.1]} 2. d4 {[%clk 0:02:59.4]}
2... d5 {[%clk 0:02:58]} 3. Nd2 {[%clk 0:02:59.6]} 3... Nf6 {[%clk 0:02:58.3]}
4. e5 {[%clk 0:02:59.3]} 4... Nfd7 {[%clk 0:02:58.8]} 5. Bd3 {[%clk 0:02:59.9]}
5... c5 {[%clk 0:02:59.6]} 6. c3 {[%clk 0:03:00.4]} 6... Nc6 {[%clk 0:03:00.5]}
7. Ne2 {[%clk 0:03:00.3]} 7... cxd4 {[%clk 0:02:59.1]} 8. cxd4 {[%clk
0:03:01.2]} 8... f6 {[%clk 0:03:00]} 9. exf6 {[%clk 0:03:02.1]} 9... Nxf6 {[%clk
0:03:00.9]} 10. Nf3 {[%clk 0:03:02.4]} 10... Bd6 {[%clk 0:03:01.3]} 11. O-O
{[%clk 0:03:02.3]} 11... Qc7 {[%clk 0:03:01.8]} 12. Bg5 {[%clk 0:03:02.4]} 12...
O-O {[%clk 0:03:01.6]} 13. Bh4 {[%clk 0:03:03]} 13... Nh5 {[%clk 0:03:02]} 14.
Bg3 {[%clk 0:02:53.8]} 14... Nxg3 {[%clk 0:03:00.9]} 15. hxg3 {[%clk 0:02:53.6]}
15... g6 {[%clk 0:03:00.3]} 16. Qd2 {[%clk 0:02:49.8]} 16... a6 {[%clk
0:02:57.7]} 17. Rac1 {[%clk 0:02:48.3]} 17... Qg7 {[%clk 0:02:57.5]} 18. Rfd1
{[%clk 0:02:43.9]} 18... Bd7 {[%clk 0:02:57.4]} 19. Bc2 {[%clk 0:02:39.6]} 19...
Rf6 {[%clk 0:02:53.5]} 20. Ba4 {[%clk 0:02:38.6]} 20... b5 {[%clk 0:02:50.2]}
21. Bb3 {[%clk 0:02:38.2]} 21... Raf8 {[%clk 0:02:49.9]} 22. Qe3 {[%clk
0:02:35.7]} 22... h6 {[%clk 0:02:43.9]} 23. Rc2 {[%clk 0:02:34.6]} 23... g5
{[%clk 0:02:42.4]} 24. Rdc1 {[%clk 0:02:34.4]} 24... g4 {[%clk 0:02:35.8]} 25.
Nh4 {[%clk 0:02:22.2]} 25... Rxf2 {[%clk 0:02:33.6]} 26. Rxc6 {[%clk 0:02:18]}
26... Bxc6 {[%clk 0:02:34.5]} 27. Rxc6 {[%clk 0:02:16.4]} 27... Rxe2 {[%clk
0:01:47.4]} 28. Qxe2 {[%clk 0:02:09.4]} 28... Qxd4+ {[%clk 0:01:47.3]} 29. Kh2
{[%clk 0:02:04.9]} 29... Bxg3+ {[%clk 0:01:46.9]} 30. Kh1 {[%clk 0:01:58.5]}
30... Qf6 {[%clk 0:01:25.5]} 31. Kg1 {[%clk 0:01:47.8]} 31... Bf2+ {[%clk
0:01:21.7]} 32. Kf1 {[%clk 0:01:43.4]} 32... Bxh4+ {[%clk 0:01:19]} 33. Kg1
{[%clk 0:01:43.3]} 33... Bf2+ {[%clk 0:01:17]} 34. Kf1 {[%clk 0:01:43.4]} 34...
Bg3+ {[%clk 0:01:14]} 35. Kg1 {[%clk 0:01:42.8]} 35... Bf2+ {[%clk 0:00:45.2]}
36. Kf1 {[%clk 0:01:42.9]} 36... Bd4+ {[%clk 0:00:34.1]} 37. Ke1 {[%clk
0:01:41.8]} 37... Qh4+ {[%clk 0:00:34.2]} 38. Kd1 {[%clk 0:01:40.2]} 38... Qh1+
{[%clk 0:00:33]} 39. Qe1 {[%clk 0:01:27.6]} 39... Rf1 {[%clk 0:00:32.4]} 40.
Rxe6 {[%clk 0:01:28.5]} 40... Rxe1+ {[%clk 0:00:30.6]} 41. Rxe1 {[%clk
0:01:29.1]} 41... Qxg2 {[%clk 0:00:30.3]} 42. Re2 {[%clk 0:01:30]} 42... Qf3
{[%clk 0:00:27.6]} 43. Kd2 {[%clk 0:01:28.3]} 43... g3 {[%clk 0:00:26.9]} 44.
Bxd5+ {[%clk 0:01:27.9]} 44... Qxd5 {[%clk 0:00:27.4]} 0-1

[Event "Late-Titled-Tuesday-Blitz-March-05-2024"]
[Site "Chess.com"]
[Date "2024.03.05"]
[Round "10"]
[White "corvachesky"]
[Black "IlanSchnaider"]
[Result "1-0"]
[WhiteElo "2522"]
[BlackElo "2614"]
[TimeControl "180+1"]
[EndTime "15:50:15 PST"]
[Termination "corvachesky won by resignation"]

1. Nf3 {[%clk 0:02:54.9]} 1... Nf6 {[%clk 0:02:59.4]} 2. d4 {[%clk 0:02:54.9]}
2... d5 {[%clk 0:02:59.2]} 3. g3 {[%clk 0:02:50.2]} 3... g6 {[%clk 0:02:59]} 4.
Bg2 {[%clk 0:02:50.5]} 4... Bg7 {[%clk 0:02:59.6]} 5. O-O {[%clk 0:02:50.3]}
5... O-O {[%clk 0:03:00.2]} 6. b3 {[%clk 0:02:50.4]} 6... c5 {[%clk 0:02:59.3]}
7. Bb2 {[%clk 0:02:47.2]} 7... Ne4 {[%clk 0:02:59.4]} 8. Nbd2 {[%clk 0:02:45.9]}
8... Nc6 {[%clk 0:02:57.8]} 9. e3 {[%clk 0:02:46.3]} 9... Bf5 {[%clk 0:02:53.5]}
10. c3 {[%clk 0:02:40.1]} 10... Rc8 {[%clk 0:02:50.5]} 11. Nxe4 {[%clk
0:02:39.1]} 11... Bxe4 {[%clk 0:02:43.8]} 12. Bh3 {[%clk 0:02:39.2]} 12... Bf5
{[%clk 0:02:29.6]} 13. Bxf5 {[%clk 0:02:36.7]} 13... gxf5 {[%clk 0:02:30.5]} 14.
dxc5 {[%clk 0:02:26.7]} 14... e5 {[%clk 0:02:30.4]} 15. b4 {[%clk 0:02:25.5]}
15... e4 {[%clk 0:02:11.1]} 16. Nd4 {[%clk 0:02:24]} 16... Ne5 {[%clk
0:02:07.5]} 17. Nxf5 {[%clk 0:02:10.4]} 17... Qd7 {[%clk 0:01:22.3]} 18. Qh5
{[%clk 0:01:44.8]} 18... Nf3+ {[%clk 0:00:57.5]} 19. Kg2 {[%clk 0:01:42.6]}
19... Bf6 {[%clk 0:00:52.9]} 20. Rad1 {[%clk 0:01:28.7]} 20... Kh8 {[%clk
0:00:49]} 21. Nd6 {[%clk 0:01:12.2]} 21... Rc7 {[%clk 0:00:20.7]} 22. Nxe4
{[%clk 0:00:51.5]} 22... dxe4 {[%clk 0:00:05.8]} 23. Rxd7 {[%clk 0:00:50.3]}
23... Rxd7 {[%clk 0:00:06.7]} 24. Qf5 {[%clk 0:00:48.6]} 24... Bg7 {[%clk
0:00:07]} 25. Qxd7 {[%clk 0:00:47.2]} 1-0

[Event "Late-Titled-Tuesday-Blitz-March-05-2024"]
[Site "Chess.com"]
[Date "2024.03.05"]
[Round "10"]
[White "northridgehawk"]
[Black "thesupera12"]
[Result "0-1"]
[WhiteElo "2328"]
[BlackElo "2481"]
[TimeControl "180+1"]
[EndTime "15:50:15 PST"]
[Termination "thesupera12 won by resignation"]

1. e4 {[%clk 0:03:00]} 1... b6 {[%clk 0:03:00.2]} 2. d4 {[%clk 0:02:59]} 2...
Bb7 {[%clk 0:03:00.2]} 3. Bd3 {[%clk 0:02:59.9]} 3... e6 {[%clk 0:02:58.1]} 4.
Qe2 {[%clk 0:02:59.9]} 4... d5 {[%clk 0:02:57.5]} 5. Nd2 {[%clk 0:02:58.2]} 5...
dxe4 {[%clk 0:02:56.9]} 6. Nxe4 {[%clk 0:02:59.1]} 6... Nf6 {[%clk 0:02:56.4]}
7. Nf3 {[%clk 0:02:59.2]} 7... h6 {[%clk 0:02:54.9]} 8. O-O {[%clk 0:02:49.5]}
8... Nbd7 {[%clk 0:02:52.9]} 9. Bf4 {[%clk 0:02:48]} 9... Be7 {[%clk 0:02:51.6]}
10. h3 {[%clk 0:02:48.1]} 10... O-O {[%clk 0:02:51]} 11. Rfd1 {[%clk 0:02:48.4]}
11... Nxe4 {[%clk 0:02:50.4]} 12. Bxe4 {[%clk 0:02:48.4]} 12... Bxe4 {[%clk
0:02:51.3]} 13. Qxe4 {[%clk 0:02:49.3]} 13... Nf6 {[%clk 0:02:52.2]} 14. Qe2
{[%clk 0:02:48.5]} 14... Rc8 {[%clk 0:02:51.7]} 15. Ne5 {[%clk 0:02:47.7]} 15...
Bd6 {[%clk 0:02:50.3]} 16. Nc6 {[%clk 0:02:45.5]} 16... Qd7 {[%clk 0:02:50.4]}
17. Ne5 {[%clk 0:02:45.3]} 17... Qa4 {[%clk 0:02:46]} 18. a3 {[%clk 0:02:38.8]}
18... Bxe5 {[%clk 0:02:44.7]} 19. Bxe5 {[%clk 0:02:36.8]} 19... Nd7 {[%clk
0:02:42.1]} 20. b3 {[%clk 0:02:33.9]} 20... Qc6 {[%clk 0:02:40.3]} 21. Bg3
{[%clk 0:02:33.4]} 21... Nf6 {[%clk 0:02:34]} 22. c4 {[%clk 0:02:32.3]} 22...
Qe4 {[%clk 0:02:32.8]} 23. Qb2 {[%clk 0:02:31.4]} 23... Rfd8 {[%clk 0:02:30.4]}
24. Rd2 {[%clk 0:02:18.7]} 24... Qf5 {[%clk 0:02:26.4]} 25. Re1 {[%clk
0:02:12.3]} 25... Ne4 {[%clk 0:02:24.4]} 26. Rd3 {[%clk 0:02:07.3]} 26... Nxg3
{[%clk 0:02:22.5]} 27. Rxg3 {[%clk 0:02:07]} 27... Rd7 {[%clk 0:02:19.5]} 28. d5
{[%clk 0:02:05.8]} 28... g6 {[%clk 0:02:12.7]} 29. dxe6 {[%clk 0:02:05.3]} 29...
fxe6 {[%clk 0:02:13.1]} 30. Re5 {[%clk 0:02:04.8]} 30... Qf6 {[%clk 0:02:10.2]}
31. Rf3 {[%clk 0:01:58.6]} 31... Qg7 {[%clk 0:02:07.2]} 32. Qe2 {[%clk
0:01:57.4]} 32... Re8 {[%clk 0:02:05.1]} 33. Rxe6 {[%clk 0:01:57.4]} 33... Rxe6
{[%clk 0:01:59.2]} 34. Qxe6+ {[%clk 0:01:58.3]} 34... Kh7 {[%clk 0:02:00.1]} 35.
Rg3 {[%clk 0:01:49.7]} 35... Re7 {[%clk 0:01:57.8]} 36. Qd5 {[%clk 0:01:47.7]}
36... h5 {[%clk 0:01:54.4]} 37. Rg5 {[%clk 0:01:46.8]} 37... Qf6 {[%clk
0:01:51.5]} 38. h4 {[%clk 0:01:46.4]} 38... Re1+ {[%clk 0:01:43.7]} 39. Kh2
{[%clk 0:01:46]} 39... Qxf2 {[%clk 0:01:41.7]} 40. Qd7+ {[%clk 0:01:13.5]} 40...
Kh6 {[%clk 0:01:39.8]} 41. Qh3 {[%clk 0:00:32.1]} 41... Qg1+ {[%clk 0:01:37.4]}
42. Kg3 {[%clk 0:00:32.7]} 42... Re3+ {[%clk 0:01:37.7]} 43. Kf4 {[%clk
0:00:33.2]} 43... Rxh3 {[%clk 0:01:36]} 44. gxh3 {[%clk 0:00:33.5]} 44... Qc1+
{[%clk 0:01:34.4]} 45. Ke5 {[%clk 0:00:33.6]} 45... Qxa3 {[%clk 0:01:34.3]} 46.
Kd5 {[%clk 0:00:31.7]} 46... Qxb3 {[%clk 0:01:33.8]} 47. Kc6 {[%clk 0:00:27.2]}
47... Qxh3 {[%clk 0:01:33.1]} 48. Rd5 {[%clk 0:00:27.2]} 48... Qxh4 {[%clk
0:01:32.1]} 49. Kxc7 {[%clk 0:00:27.6]} 49... Qxc4+ {[%clk 0:01:31.8]} 50. Kd6
{[%clk 0:00:27]} 50... Qxd5+ {[%clk 0:01:32]} 0-1

[Event "Late-Titled-Tuesday-Blitz-March-05-2024"]
[Site "Chess.com"]
[Date "2024.03.05"]
[Round "10"]
[White "Qvalda"]
[Black "Zq1"]
[Result "0-1"]
[WhiteElo "2432"]
[BlackElo "2578"]
[TimeControl "180+1"]
[EndTime "15:50:22 PST"]
[Termination "Zq1 won on time"]

1. d4 {[%clk 0:03:00.9]} 1... Nf6 {[%clk 0:02:59.1]} 2. c4 {[%clk 0:03:00.2]}
2... a6 {[%clk 0:02:59.4]} 3. Nf3 {[%clk 0:02:58.7]} 3... e6 {[%clk 0:02:58.1]}
4. Bf4 {[%clk 0:02:57.7]} 4... c5 {[%clk 0:02:55.5]} 5. d5 {[%clk 0:02:57.2]}
5... b5 {[%clk 0:02:52.1]} 6. dxe6 {[%clk 0:02:53.5]} 6... fxe6 {[%clk
0:02:51.1]} 7. cxb5 {[%clk 0:02:53.1]} 7... axb5 {[%clk 0:02:50.4]} 8. e3 {[%clk
0:02:53.8]} 8... Qa5+ {[%clk 0:02:47]} 9. Qd2 {[%clk 0:02:49.1]} 9... c4 {[%clk
0:02:43.3]} 10. Qxa5 {[%clk 0:02:46.4]} 10... Rxa5 {[%clk 0:02:42.1]} 11. Bxb8
{[%clk 0:02:46.3]} 11... Bb4+ {[%clk 0:02:35.6]} 12. Nfd2 {[%clk 0:02:39]} 12...
Ne4 {[%clk 0:02:29.4]} 13. Be5 {[%clk 0:02:36]} 13... O-O {[%clk 0:02:23.4]} 14.
f3 {[%clk 0:02:27.2]} 14... d6 {[%clk 0:01:56.3]} 15. Bc3 {[%clk 0:01:48.5]}
15... Nxc3 {[%clk 0:01:50.3]} 16. Nxc3 {[%clk 0:01:47.8]} 16... d5 {[%clk
0:01:43.4]} 17. Kf2 {[%clk 0:01:42.1]} 17... Bc5 {[%clk 0:01:41.8]} 18. Ne2
{[%clk 0:01:03.8]} 18... e5 {[%clk 0:01:36.4]} 19. Ng3 {[%clk 0:00:25.9]} 19...
Be6 {[%clk 0:01:28.4]} 20. Be2 {[%clk 0:00:18.6]} 20... d4 {[%clk 0:01:27.2]}
21. Nde4 {[%clk 0:00:19]} 21... dxe3+ {[%clk 0:01:26.3]} 22. Ke1 {[%clk
0:00:18.6]} 22... Bd4 {[%clk 0:01:26.4]} 23. Rb1 {[%clk 0:00:16.4]} 23... Rxa2
{[%clk 0:01:25.2]} 24. Nd6 {[%clk 0:00:13.5]} 24... Rb8 {[%clk 0:01:15.3]} 25.
Nge4 {[%clk 0:00:13.1]} 25... Rxb2 {[%clk 0:01:08.6]} 26. Rxb2 {[%clk 0:00:13]}
26... Bxb2 {[%clk 0:01:08.5]} 27. Kd1 {[%clk 0:00:13.5]} 27... c3 {[%clk
0:01:05.2]} 28. Kc2 {[%clk 0:00:13.5]} 28... b4 {[%clk 0:01:04.9]} 29. Nc5
{[%clk 0:00:10.2]} 29... b3+ {[%clk 0:01:04.4]} 30. Kb1 {[%clk 0:00:07.9]} 30...
Ba3 {[%clk 0:01:02]} 31. Nxe6 {[%clk 0:00:06]} 31... c2+ {[%clk 0:01:01.4]} 32.
Ka1 {[%clk 0:00:04.7]} 32... b2+ {[%clk 0:01:00.7]} 33. Ka2 {[%clk 0:00:05.1]}
33... b1=Q+ {[%clk 0:01:00.4]} 0-1

[Event "Late-Titled-Tuesday-Blitz-March-05-2024"]
[Site "Chess.com"]
[Date "2024.03.05"]
[Round "10"]
[White "OPQRC"]
[Black "mac0504"]
[Result "0-1"]
[WhiteElo "2577"]
[BlackElo "2725"]
[TimeControl "180+1"]
[EndTime "15:50:27 PST"]
[Termination "mac0504 won by resignation"]

1. e4 {[%clk 0:02:53.1]} 1... Nc6 {[%clk 0:03:00]} 2. Nf3 {[%clk 0:02:51.7]}
2... d6 {[%clk 0:03:00.5]} 3. b3 {[%clk 0:02:51.1]} 3... Nf6 {[%clk 0:02:59.7]}
4. Bd3 {[%clk 0:02:49.2]} 4... e5 {[%clk 0:02:59.6]} 5. Bb2 {[%clk 0:02:49.2]}
5... g6 {[%clk 0:02:58.9]} 6. O-O {[%clk 0:02:49]} 6... Bg7 {[%clk 0:02:59.6]}
7. c3 {[%clk 0:02:48.2]} 7... O-O {[%clk 0:03:00.2]} 8. Bc2 {[%clk 0:02:48.5]}
8... Re8 {[%clk 0:02:58.9]} 9. Re1 {[%clk 0:02:48.2]} 9... Bg4 {[%clk
0:02:56.6]} 10. h3 {[%clk 0:02:47.7]} 10... Bxf3 {[%clk 0:02:56.9]} 11. Qxf3
{[%clk 0:02:47.6]} 11... Nd7 {[%clk 0:02:57.5]} 12. Na3 {[%clk 0:02:44.5]} 12...
a6 {[%clk 0:02:46.6]} 13. Nc4 {[%clk 0:02:44.4]} 13... Qh4 {[%clk 0:02:46.6]}
14. Ne3 {[%clk 0:02:41.2]} 14... Nb6 {[%clk 0:02:31.5]} 15. Rad1 {[%clk
0:02:39.8]} 15... a5 {[%clk 0:02:23.2]} 16. a4 {[%clk 0:02:38.5]} 16... Rad8
{[%clk 0:02:13.9]} 17. d4 {[%clk 0:02:37.8]} 17... exd4 {[%clk 0:02:14.2]} 18.
cxd4 {[%clk 0:02:38.7]} 18... Nb4 {[%clk 0:02:12.6]} 19. Bb1 {[%clk 0:02:32.2]}
19... c5 {[%clk 0:02:12.7]} 20. e5 {[%clk 0:02:15.1]} 20... dxe5 {[%clk
0:02:00.5]} 21. dxc5 {[%clk 0:01:41.5]} 21... e4 {[%clk 0:01:59.1]} 22. Qe2
{[%clk 0:01:18.9]} 22... Bxb2 {[%clk 0:01:24.5]} 23. Qxb2 {[%clk 0:01:19.8]}
23... Nd7 {[%clk 0:01:24.2]} 24. Ng4 {[%clk 0:00:32.9]} 24... Nd3 {[%clk
0:00:49.3]} 25. Bxd3 {[%clk 0:00:29.3]} 25... exd3 {[%clk 0:00:48.8]} 26. Rxe8+
{[%clk 0:00:29.2]} 26... Rxe8 {[%clk 0:00:49.7]} 27. Rxd3 {[%clk 0:00:28]} 27...
Re1+ {[%clk 0:00:47.8]} 28. Kh2 {[%clk 0:00:24.8]} 28... Ne5 {[%clk 0:00:48.4]}
29. Rd8+ {[%clk 0:00:21.7]} 29... Qxd8 {[%clk 0:00:45.6]} 30. Nxe5 {[%clk
0:00:21]} 30... Qc7 {[%clk 0:00:44.3]} 31. f4 {[%clk 0:00:20.4]} 31... Qxc5
{[%clk 0:00:44.7]} 32. Qd2 {[%clk 0:00:17.5]} 32... Qg1+ {[%clk 0:00:42.4]} 33.
Kg3 {[%clk 0:00:17.9]} 33... Qe3+ {[%clk 0:00:43.1]} 0-1

[Event "Late-Titled-Tuesday-Blitz-March-05-2024"]
[Site "Chess.com"]
[Date "2024.03.05"]
[Round "10"]
[White "Nick12772"]
[Black "Bekkedahl"]
[Result "1-0"]
[WhiteElo "2399"]
[BlackElo "2217"]
[TimeControl "180+1"]
[EndTime "15:50:30 PST"]
[Termination "Nick12772 won by resignation"]

1. Nf3 {[%clk 0:03:00.9]} 1... Nf6 {[%clk 0:02:59.6]} 2. g3 {[%clk 0:03:01.3]}
2... g6 {[%clk 0:03:00.3]} 3. Bg2 {[%clk 0:03:02]} 3... Bg7 {[%clk 0:03:00.8]}
4. O-O {[%clk 0:03:02.9]} 4... O-O {[%clk 0:03:00.8]} 5. c4 {[%clk 0:03:03.8]}
5... d6 {[%clk 0:03:01.4]} 6. Nc3 {[%clk 0:03:04.4]} 6... e5 {[%clk 0:03:02.1]}
7. d3 {[%clk 0:03:05]} 7... Nc6 {[%clk 0:03:02.8]} 8. Bg5 {[%clk 0:03:05.3]}
8... h6 {[%clk 0:03:02.4]} 9. Bxf6 {[%clk 0:03:05.8]} 9... Bxf6 {[%clk 0:03:02]}
10. Rb1 {[%clk 0:03:06.4]} 10... a5 {[%clk 0:03:01.1]} 11. a3 {[%clk 0:03:06.5]}
11... Bg7 {[%clk 0:02:56.5]} 12. b4 {[%clk 0:03:05.3]} 12... axb4 {[%clk
0:02:51]} 13. axb4 {[%clk 0:03:06.2]} 13... Be6 {[%clk 0:02:47.5]} 14. b5 {[%clk
0:03:06.1]} 14... Ne7 {[%clk 0:02:47.1]} 15. e4 {[%clk 0:03:05.8]} 15... f5
{[%clk 0:02:46.7]} 16. exf5 {[%clk 0:02:58.3]} 16... Nxf5 {[%clk 0:02:41.2]} 17.
Ne1 {[%clk 0:02:55.7]} 17... Ra7 {[%clk 0:02:35.1]} 18. Nc2 {[%clk 0:02:55]}
18... Nd4 {[%clk 0:02:33.2]} 19. Nxd4 {[%clk 0:02:54.8]} 19... exd4 {[%clk
0:02:34.1]} 20. Nd5 {[%clk 0:02:50.9]} 20... Qd7 {[%clk 0:02:22]} 21. b6 {[%clk
0:02:42.3]} 21... cxb6 {[%clk 0:02:13.5]} 22. Nxb6 {[%clk 0:02:42.4]} 22... Qe7
{[%clk 0:01:59.1]} 23. Nd5 {[%clk 0:02:41.9]} 23... Qg5 {[%clk 0:01:55.1]} 24.
h4 {[%clk 0:02:23.2]} 24... Qg4 {[%clk 0:01:47]} 25. Ne7+ {[%clk 0:01:47.3]}
25... Kh7 {[%clk 0:01:44.2]} 26. Be4 {[%clk 0:01:30.6]} 26... Rf6 {[%clk
0:01:28]} 27. h5 {[%clk 0:01:26.5]} 27... Qxd1 {[%clk 0:00:46.5]} 28. Rbxd1
{[%clk 0:01:21.1]} 28... Bf5 {[%clk 0:00:45.3]} 29. hxg6+ {[%clk 0:01:07.3]}
29... Bxg6 {[%clk 0:00:45.6]} 30. Nxg6 {[%clk 0:01:02.3]} 30... Rxg6 {[%clk
0:00:45.4]} 31. Rb1 {[%clk 0:00:59.4]} 31... Be5 {[%clk 0:00:43.9]} 32. Ra1
{[%clk 0:00:50.1]} 32... Rxa1 {[%clk 0:00:33.5]} 33. Rxa1 {[%clk 0:00:51]} 33...
Kg7 {[%clk 0:00:33.8]} 34. Bxg6 {[%clk 0:00:51]} 34... Kxg6 {[%clk 0:00:34.7]}
35. Rb1 {[%clk 0:00:49]} 35... Kg5 {[%clk 0:00:32.5]} 36. Rxb7 {[%clk
0:00:47.6]} 36... h5 {[%clk 0:00:33.4]} 37. Re7 {[%clk 0:00:46.1]} 37... Kf6
{[%clk 0:00:29.5]} 38. Re8 {[%clk 0:00:45.4]} 38... Kf7 {[%clk 0:00:29.2]} 39.
Ra8 {[%clk 0:00:45.1]} 39... Kg6 {[%clk 0:00:29.4]} 40. Kg2 {[%clk 0:00:45.5]}
40... Kg5 {[%clk 0:00:29.6]} 41. Kf3 {[%clk 0:00:46.2]} 41... h4 {[%clk
0:00:27.8]} 42. gxh4+ {[%clk 0:00:46.5]} 42... Kxh4 {[%clk 0:00:28.1]} 43. Rg8
{[%clk 0:00:46.7]} 43... Kh5 {[%clk 0:00:27.9]} 44. Ke4 {[%clk 0:00:46.4]} 1-0

[Event "Late-Titled-Tuesday-Blitz-March-05-2024"]
[Site "Chess.com"]
[Date "2024.03.05"]
[Round "10"]
[White "traack"]
[Black "Ajedrez_con_German"]
[Result "1-0"]
[WhiteElo "2447"]
[BlackElo "2552"]
[TimeControl "180+1"]
[EndTime "15:50:32 PST"]
[Termination "traack won by checkmate"]

1. e4 {[%clk 0:02:53.6]} 1... g6 {[%clk 0:03:00.9]} 2. d4 {[%clk 0:02:53.1]}
2... Bg7 {[%clk 0:03:01.4]} 3. Nc3 {[%clk 0:02:53.3]} 3... d5 {[%clk 0:03:02.1]}
4. exd5 {[%clk 0:02:51.4]} 4... Nf6 {[%clk 0:03:02.5]} 5. Bc4 {[%clk 0:02:48.2]}
5... O-O {[%clk 0:03:02.5]} 6. Nf3 {[%clk 0:02:48]} 6... Nbd7 {[%clk 0:03:03.4]}
7. Bb3 {[%clk 0:02:39]} 7... Nb6 {[%clk 0:03:03.8]} 8. O-O {[%clk 0:02:39.6]}
8... Bg4 {[%clk 0:03:01.6]} 9. h3 {[%clk 0:02:38.3]} 9... Bf5 {[%clk 0:02:59.5]}
10. Re1 {[%clk 0:02:37.2]} 10... Nfxd5 {[%clk 0:02:56.9]} 11. Nxd5 {[%clk
0:02:35.2]} 11... Nxd5 {[%clk 0:02:57.8]} 12. c3 {[%clk 0:02:34.9]} 12... c6
{[%clk 0:02:53.4]} 13. a4 {[%clk 0:02:31.5]} 13... a5 {[%clk 0:02:52.9]} 14. Bg5
{[%clk 0:02:30.2]} 14... Re8 {[%clk 0:02:52.1]} 15. Qd2 {[%clk 0:02:29.9]} 15...
Qb6 {[%clk 0:02:47.5]} 16. Bc4 {[%clk 0:02:27.3]} 16... Qc7 {[%clk 0:02:31.7]}
17. Bh6 {[%clk 0:02:24.2]} 17... Rad8 {[%clk 0:02:14.4]} 18. Bxg7 {[%clk
0:02:23.2]} 18... Kxg7 {[%clk 0:02:14.3]} 19. Ne5 {[%clk 0:02:23.2]} 19... f6
{[%clk 0:02:02]} 20. Ng4 {[%clk 0:02:22.8]} 20... Bxg4 {[%clk 0:02:00.9]} 21.
hxg4 {[%clk 0:02:23.7]} 21... e5 {[%clk 0:02:00.3]} 22. dxe5 {[%clk 0:02:19.7]}
22... Rxe5 {[%clk 0:01:56.6]} 23. Rxe5 {[%clk 0:02:19]} 23... Qxe5 {[%clk
0:01:56.5]} 24. Re1 {[%clk 0:02:19.4]} 24... Qc7 {[%clk 0:01:55.7]} 25. Qe2
{[%clk 0:02:08.9]} 25... Rd7 {[%clk 0:01:49.8]} 26. Bxd5 {[%clk 0:02:01.6]}
26... cxd5 {[%clk 0:01:49.9]} 27. Qe8 {[%clk 0:01:54.5]} 27... Rf7 {[%clk
0:01:44.4]} 28. Qb5 {[%clk 0:01:49.1]} 28... Rd7 {[%clk 0:01:17.9]} 29. Re6
{[%clk 0:01:42.8]} 29... d4 {[%clk 0:01:16.9]} 30. cxd4 {[%clk 0:01:30.6]} 30...
Rxd4 {[%clk 0:01:15.3]} 31. g3 {[%clk 0:01:23.2]} 31... Qc1+ {[%clk 0:00:57]}
32. Kg2 {[%clk 0:01:19]} 32... Rd1 {[%clk 0:00:57.4]} 33. Re7+ {[%clk
0:00:52.4]} 33... Kh6 {[%clk 0:00:57.6]} 34. Qxb7 {[%clk 0:00:52.3]} 34... Rg1+
{[%clk 0:00:31.9]} 35. Kh2 {[%clk 0:00:48.8]} 35... Qf1 {[%clk 0:00:32]} 36.
Rxh7+ {[%clk 0:00:43]} 36... Kg5 {[%clk 0:00:32.5]} 37. Rh5+ {[%clk 0:00:34.4]}
37... gxh5 {[%clk 0:00:31.1]} 38. Qg7# {[%clk 0:00:35.3]} 1-0

[Event "Late-Titled-Tuesday-Blitz-March-05-2024"]
[Site "Chess.com"]
[Date "2024.03.05"]
[Round "10"]
[White "giomar27"]
[Black "Statham_01"]
[Result "1-0"]
[WhiteElo "2449"]
[BlackElo "2573"]
[TimeControl "180+1"]
[EndTime "15:50:43 PST"]
[Termination "giomar27 won by checkmate"]

1. Nc3 {[%clk 0:03:00.9]} 1... Nf6 {[%clk 0:02:58.7]} 2. e4 {[%clk 0:02:58.9]}
2... e5 {[%clk 0:02:55.3]} 3. d4 {[%clk 0:02:59]} 3... exd4 {[%clk 0:02:54]} 4.
Qxd4 {[%clk 0:02:59.9]} 4... Nc6 {[%clk 0:02:54.5]} 5. Qd3 {[%clk 0:03:00.3]}
5... Be7 {[%clk 0:02:42.1]} 6. Bf4 {[%clk 0:02:59.6]} 6... d5 {[%clk 0:02:23.3]}
7. O-O-O {[%clk 0:02:45.3]} 7... O-O {[%clk 0:01:44.5]} 8. exd5 {[%clk
0:02:44.5]} 8... Nb4 {[%clk 0:01:44.1]} 9. Qc4 {[%clk 0:02:44.6]} 9... Bf5
{[%clk 0:01:35.8]} 10. d6 {[%clk 0:02:44.8]} 10... Bxc2 {[%clk 0:01:16.3]} 11.
Rd2 {[%clk 0:02:36.7]} 11... c5 {[%clk 0:00:53.6]} 12. a3 {[%clk 0:02:30.6]}
12... b5 {[%clk 0:00:46.1]} 13. Qxb5 {[%clk 0:02:21.4]} 13... Rb8 {[%clk
0:00:27]} 14. Qxc5 {[%clk 0:02:21.5]} 14... Bxd6 {[%clk 0:00:12.8]} 15. Qxd6
{[%clk 0:02:14.1]} 15... Qa5 {[%clk 0:00:09.3]} 16. axb4 {[%clk 0:02:12.8]}
16... Rxb4 {[%clk 0:00:09.3]} 17. Kxc2 {[%clk 0:02:08.4]} 17... Rfb8 {[%clk
0:00:07.7]} 18. Qxb8+ {[%clk 0:02:02.6]} 18... Rxb8 {[%clk 0:00:07.4]} 19. Bxb8
{[%clk 0:02:03.5]} 19... h6 {[%clk 0:00:05.6]} 20. Nf3 {[%clk 0:01:59.3]} 20...
Ng4 {[%clk 0:00:03.9]} 21. Bg3 {[%clk 0:01:57.6]} 21... Nf6 {[%clk 0:00:02.1]}
22. Bc4 {[%clk 0:01:56.8]} 22... Qb6 {[%clk 0:00:02.3]} 23. Re1 {[%clk
0:01:55.3]} 23... a5 {[%clk 0:00:02.7]} 24. Re7 {[%clk 0:01:50.7]} 24... Qc5
{[%clk 0:00:03.1]} 25. Bxf7+ {[%clk 0:01:42.4]} 25... Kh7 {[%clk 0:00:03.2]} 26.
Bd6 {[%clk 0:01:40.4]} 26... Qf5+ {[%clk 0:00:03.3]} 27. Rd3 {[%clk 0:01:37.4]}
27... a4 {[%clk 0:00:03.7]} 28. Nxa4 {[%clk 0:01:30.9]} 28... Ne4 {[%clk
0:00:03.7]} 29. Rxe4 {[%clk 0:01:27.7]} 29... Qxe4 {[%clk 0:00:04.6]} 30. Nc3
{[%clk 0:01:25.2]} 30... Qg4 {[%clk 0:00:04.7]} 31. g3 {[%clk 0:01:22.6]} 31...
Qf5 {[%clk 0:00:04.1]} 32. Bd5 {[%clk 0:01:22.2]} 32... Qd7 {[%clk 0:00:04.4]}
33. Be4+ {[%clk 0:01:23.1]} 33... Kh8 {[%clk 0:00:04.5]} 34. Be5 {[%clk
0:01:23.1]} 34... Qe8 {[%clk 0:00:04.3]} 35. Nh4 {[%clk 0:01:22.6]} 35... Kg8
{[%clk 0:00:02]} 36. Ng6 {[%clk 0:01:22.2]} 36... h5 {[%clk 0:00:02.4]} 37. Bc7
{[%clk 0:01:15.5]} 37... Kh7 {[%clk 0:00:01.9]} 38. Rd8 {[%clk 0:01:15.4]} 38...
h4 {[%clk 0:00:01.1]} 39. Rxe8 {[%clk 0:01:15]} 39... Kh6 {[%clk 0:00:02]} 40.
f4 {[%clk 0:01:10.6]} 40... Kh5 {[%clk 0:00:02.9]} 41. Rh8+ {[%clk 0:01:08.1]}
41... Kg4 {[%clk 0:00:03.8]} 42. Rxh4# {[%clk 0:01:08.4]} 1-0